bitfinex-derivatives/quotes_ETHF0:USTF0_20250926
["timestamp","ask_amount","ask_price","bid_price","bid_amount"]
[1758888500944,0.7791,3896.9,3896.8,0.93569]
[1758888501137,1.30905235,3896.9,3896.8,1.49139]
[1758888502548,1.30905235,3896.9,3896.8,0.93569]
[1758888502748,1.30905235,3896.9,3896.8,1.49139]
[1758888503046,1.77063235,3896.9,3896.8,1.15169]
[1758888503446,1.77063235,3896.9,3896.8,0.2131]
[1758888503642,1.77063235,3896.9,3896.7,0.4616]
[1758888503643,1.24071,3896.8,3896.7,0.4616]
[1758888503838,0.58883,3896.5,3896.4,0.46163]
[1758888504146,1.89808765,3896.5,3896.4,0.46163]
[1758888504648,1.89808765,3896.5,3896.4,0.2131]
[1758888505050,1.89808765,3896.5,3896.4,0.67474]
[1758888505252,0.4434,3896.3,3896.2,0.46165]
[1758888505544,0.7791,3896.3,3896.2,0.46165]
[1758888505750,1.30925765,3896.3,3896.2,0.46165]
[1758888505952,1.30925765,3896.3,3896.2,1.23045]
[1758888507351,1.30925765,3896.3,3896.2,0.67475]
[1758888508046,0.3357,3896.2,3896.1,0.46167]
[1758888508354,1.30925765,3896.2,3896.1,0.46167]
[1758888508648,1.30925765,3896.2,3896.1,0.41167]
[1758888508649,1.77090765,3896.2,3896.1,0.41167]
[1758888509046,1.30925765,3896.2,3896.1,0.62477]
[1758888509245,1.30925765,3896.2,3896.1,1.18047]
[1758888509649,1.30925765,3896.2,3896.0,0.46168]
[1758888509650,0.46167,3896.1,3896.0,0.46168]
[1758888509849,1.30925765,3896.1,3896.0,0.46168]
[1758888510050,1.30925765,3896.1,3896.0,0.67478]
[1758888510752,0.4434,3895.8,3895.7,0.67481]
[1758888511061,0.7791,3895.8,3895.7,0.67481]
[1758888511249,1.24081,3895.7,3895.6,0.46173]
[1758888511440,1.24081,3895.7,3895.5,0.46173]
[1758888511441,0.79743,3895.6,3895.5,0.46173]
[1758888511643,1.77152671,3895.6,3895.5,0.46173]
[1758888512053,1.30979671,3895.6,3895.5,0.46173]
[1758888512254,1.42017992,3895.6,3895.5,0.89083]
[1758888512456,1.68117992,3895.6,3895.5,1.23053]
[1758888514352,0.64107992,3895.6,3895.5,1.36323]
[1758888514951,1.42017992,3895.6,3895.5,1.23053]
[1758888515357,1.42017992,3895.6,3895.5,1.36323]
[1758888516558,1.42017992,3895.6,3895.5,1.23053]
[1758888517456,1.42017992,3895.6,3895.5,0.46173]
[1758888518057,1.42017992,3895.6,3895.1,0.67489]
[1758888518058,0.7791,3895.2,3895.1,0.67489]
[1758888518361,1.68117992,3895.2,3895.1,0.67489]
[1758888518860,1.68117992,3895.2,3895.1,1.22889]
[1758888520361,3.71384929,3895.2,3895.1,0.89749]
[1758888520753,3.71384929,3895.2,3895.1,1.22889]
[1758888521153,1.42017992,3895.2,3895.1,1.22889]
[1758888521356,0.90207992,3895.2,3895.1,1.22889]
[1758888521958,1.11707992,3895.2,3895.1,1.22889]
[1758888522965,0.85607992,3895.2,3895.1,1.22889]
[1758888523362,0.64107992,3895.2,3895.1,1.22889]
[1758888525065,0.85607992,3895.2,3895.1,1.22889]
[1758888525754,0.64107992,3895.2,3895.1,1.22889]
[1758888527063,0.11038321,3895.2,3895.1,1.22889]
[1758888527266,0.11038321,3895.2,3895.1,4.43669]
[1758888528273,0.11038321,3895.2,3895.1,9.43669]
[1758888528672,0.11038321,3895.2,3895.1,50.23669]
[1758888529072,3.21e-06,3895.2,3895.1,50.23669]
[1758888529274,0.7728,3896.0,3895.9,1.24739]
[1758888529474,1.30403444,3896.0,3895.9,1.24739]
[1758888530376,0.53123444,3896.0,3895.9,4.45519]
[1758888530581,0.5501,3896.7,3896.6,1.24731]
[1758888530781,1.08126291,3896.7,3896.6,1.24731]
[1758888531373,0.53116291,3896.7,3896.6,1.24731]
[1758888532181,0.3607,3897.0,3896.9,0.46157]
[1758888532375,1.10645039,3897.0,3896.9,1.24727]
[1758888533785,1.30355039,3897.0,3896.9,1.24727]
[1758888534287,1.44325039,3897.0,3896.9,1.24727]
[1758888534877,0.53075039,3897.0,3896.9,1.24727]
[1758888535083,3.2078,3897.2,3897.1,0.46155]
[1758888535279,3.73805544,3897.2,3897.1,1.24725]
[1758888535887,0.53025544,3897.2,3897.1,1.24725]
[1758888536081,0.5501,3897.4,3897.3,0.91583]
[1758888536282,0.5501,3897.4,3897.3,1.24723]
[1758888536487,0.7728,3897.4,3897.3,1.24723]
[1758888536780,2.99796003,3897.4,3897.3,1.24723]
[1758888536982,2.66286003,3897.4,3897.3,1.24723]
[1758888537178,2.44016003,3897.4,3897.3,1.24723]
[1758888537477,2.77526003,3897.4,3897.3,1.24723]
[1758888538883,2.44016003,3897.4,3897.3,1.24723]
[1758888539277,2.22516003,3897.4,3897.3,1.24723]
[1758888540887,2.77526003,3897.4,3897.3,1.24723]
[1758888541184,2.88431492,3897.4,3897.3,1.24723]
[1758888542082,0.65915489,3897.4,3897.3,1.24723]
[1758888542290,2.88431492,3897.4,3897.3,1.24723]
[1758888543492,0.32405489,3897.4,3897.3,1.24723]
[1758888543684,2.33413149,3897.4,3897.3,4.45503]
[1758888543988,3.10693149,3897.4,3897.3,1.24723]
[1758888544290,5.33209152,3897.4,3897.3,0.46153]
[1758888544782,0.5774,3896.5,3896.4,3.66944]
[1758888544978,3.50763149,3896.5,3896.4,3.66944]
[1758888545590,3.50763149,3896.5,3896.4,3.90114]
[1758888545791,3.50763149,3896.5,3896.4,3.66944]
[1758888546286,3.50763149,3896.5,3895.8,0.5991]
[1758888546287,0.5635,3896.0,3895.9,3.2078]
[1758888546479,0.5635,3896.0,3895.9,3.6695]
[1758888546480,3.23463149,3896.0,3895.9,3.6695]
[1758888546787,1.2144737,3896.0,3895.3,0.261]
[1758888546985,0.9005,3895.5,3895.4,3.66955]
[1758888547178,1.00947146,3895.5,3895.4,0.46175]
[1758888548189,1.00947146,3895.5,3894.7,1.15459]
[1758888548381,0.5549,3894.7,3894.6,4.45365]
[1758888548693,0.5549,3894.7,3894.6,0.69205]
[1758888548694,0.89417199,3894.7,3894.6,0.69205]
[1758888549094,0.89417199,3894.7,3894.6,1.03545]
[1758888549291,0.89417199,3894.7,3894.6,1.24585]
[1758888550288,0.89417199,3894.7,3894.5,0.261]
[1758888550485,0.9228,3894.5,3894.4,0.46187]
[1758888550691,1.03177199,3894.5,3894.4,0.46187]
[1758888551689,8.84777974,3894.5,3894.2,0.46189]
[1758888551893,0.89417199,3894.4,3894.3,0.46188]
[1758888552289,0.89411839,3894.4,3894.3,0.46188]
[1758888552692,0.89411839,3894.4,3894.1,0.4619]
[1758888552693,0.7852,3894.2,3894.1,0.4619]
[1758888552898,0.7852,3894.2,3893.9,0.46192]
[1758888552899,0.9228,3894.0,3893.9,0.46192]
[1758888553100,8.84772614,3894.0,3893.9,0.46192]
[1758888553799,8.84772614,3894.0,3893.9,0.69212]
[1758888553800,8.58672614,3894.0,3893.9,0.69212]
[1758888553995,8.84772614,3894.0,3893.9,0.46192]
[1758888555202,8.84772614,3894.0,3893.9,0.69212]
[1758888555497,8.84772614,3894.0,3893.9,0.46192]
[1758888557897,0.89411839,3894.0,3893.9,1.24592]
[1758888558192,0.0256,3894.2,3894.1,1.24591]
[1758888558193,1.0718,3894.2,3894.1,1.24591]
[1758888558498,0.91945105,3894.2,3894.1,1.24591]
[1758888559598,0.91945105,3894.2,3894.1,0.69211]
[1758888560398,0.58225105,3894.2,3894.1,0.46191]
[1758888560998,0.91945105,3894.2,3894.1,0.46191]
[1758888561693,0.1376,3893.5,3892.4,3.5512]
[1758888561889,0.9228,3893.0,3892.9,0.71793812]
[1758888562091,1.03323202,3893.0,3892.9,0.71793812]
[1758888562299,0.9228,3893.0,3892.9,0.71793812]
[1758888562497,1.29417125,3893.0,3892.9,0.71793812]
[1758888562698,1.03317125,3893.0,3892.9,0.71793812]
[1758888563001,1.1838,3893.0,3892.9,0.71793812]
[1758888564203,1.1838,3893.0,3892.9,0.48773812]
[1758888565602,1.1838,3893.0,3892.9,0.02568812]
[1758888565603,1.75610379,3893.0,3892.9,0.02568812]
[1758888566501,1.29406379,3893.0,3892.9,0.46205]
[1758888566702,8.84907154,3893.0,3892.9,0.46205]
[1758888567206,9.31111154,3893.0,3892.9,0.46205]
[1758888567704,8.84907154,3893.0,3892.9,0.46205]
[1758888568097,9.31111154,3893.0,3892.9,0.46205]
[1758888568292,9.31111154,3893.0,3892.3,1.4987]
[1758888568293,0.46206,3892.9,3892.7,0.46207]
[1758888568498,3.993,3892.9,3892.8,0.46206]
[1758888568701,4.36428208,3892.9,3892.8,0.46206]
[1758888569008,4.82633208,3892.9,3892.8,0.46206]
[1758888569405,4.36428208,3892.9,3892.8,0.46206]
[1758888569904,4.36428208,3892.9,3892.8,0.69226]
[1758888570103,0.55828208,3892.9,3892.8,1.24606]
[1758888570306,0.81928208,3892.9,3892.8,1.24606]
[1758888570604,1.15648208,3892.9,3892.8,1.24606]
[1758888570799,0.32798208,3892.9,3892.8,1.24606]
[1758888571002,3.2078,3893.3,3893.1,0.46203]
[1758888571003,0.3372,3893.2,3893.1,0.46203]
[1758888571207,0.32801536,3893.2,3893.1,1.24603]
[1758888571409,0.66521536,3893.2,3893.1,1.24603]
[1758888571802,0.11031536,3893.2,3893.1,1.24603]
[1758888572608,0.11031536,3893.2,3893.1,6.24603]
[1758888573106,0.11031536,3893.2,3893.1,9.45383]
[1758888573704,0.11031536,3893.2,3893.1,9.71483]
[1758888574702,0.89551536,3893.2,3893.1,3.90003]
[1758888574904,0.448,3892.8,3892.6,3.2078]
[1758888575100,8.71152311,3892.7,3892.6,3.2078]
[1758888575301,0.7852,3892.3,3892.2,0.46213]
[1758888575611,0.89551536,3892.3,3892.2,0.46213]
[1758888576003,8.91264311,3892.3,3892.1,0.46214]
[1758888576203,0.89551536,3892.2,3891.7,3.2078]
[1758888576414,0.89551536,3892.1,3892.0,0.46216]
[1758888576712,1.15651536,3892.1,3892.0,0.46216]
[1758888576920,0.3372,3891.7,3891.4,0.3434]
[1758888577114,0.9228,3891.5,3891.4,0.69243]
[1758888577315,0.3372,3891.4,3891.3,0.4755805]
[1758888577517,0.89551536,3891.4,3891.3,0.4755805]
[1758888577815,1.10087479,3891.4,3891.3,0.2435405]
[1758888578114,1.36187479,3891.4,3891.3,0.7973405]
[1758888578713,0.89551536,3891.4,3891.3,0.7973405]
[1758888578919,1.15651536,3891.4,3891.3,0.7973405]
[1758888579221,1.15651536,3891.4,3891.3,0.0133405]
[1758888579617,1.15651536,3891.4,3891.3,0.2348405]
[1758888579917,1.15651536,3891.4,3891.3,0.5587405]
[1758888580320,0.89551536,3891.4,3891.3,0.7729405]
[1758888580512,1.15651536,3891.4,3891.3,0.7729405]
[1758888581719,0.11031536,3891.4,3891.3,0.7729405]
[1758888581923,0.34001536,3891.4,3891.3,0.7729405]
[1758888582332,0.11031536,3891.4,3891.3,0.7729405]
[1758888583323,0.90971536,3891.4,3891.3,0.7729405]
[1758888583718,0.90971536,3891.4,3891.3,1.2351805]
[1758888584119,0.90971536,3891.4,3891.3,0.4755805]
[1758888584723,1.90215078,3891.4,3891.3,0.0133405]
[1758888585025,0.90971536,3891.4,3891.3,1.2351805]
[1758888587027,0.90971536,3891.4,3891.3,1.2351805]
[1758888587230,0.90971536,3891.4,3891.3,1.0209805]
[1758888587428,1.17171536,3891.4,3891.3,0.6970805]
[1758888588529,0.90971536,3891.4,3891.3,1.2351805]
[1758888588830,0.60201536,3891.4,3891.3,1.2351805]
[1758888589120,0.94511536,3891.4,3891.3,1.2351805]
[1758888589326,1.17171536,3891.4,3891.3,1.2351805]
[1758888590129,0.90971536,3891.4,3891.3,1.2351805]
[1758888590621,0.7994,3891.4,3891.3,1.2351805]
[1758888590822,0.91037062,3891.4,3891.3,0.9112805]
[1758888591022,1.44104475,3891.4,3891.3,0.6970805]
[1758888592030,1.70304475,3891.4,3891.3,1.2351805]
[1758888592731,1.70304475,3891.4,3891.3,0.9112805]
[1758888592925,1.44104475,3891.4,3891.3,0.9112805]
[1758888593228,1.44104475,3891.4,3891.3,0.6970805]
[1758888593531,1.44104475,3891.4,3891.3,1.2351805]
[1758888595425,1.44104475,3891.4,3891.3,0.9112805]
[1758888595824,1.44104475,3891.4,3891.3,1.2351805]
[1758888597025,1.44104475,3891.4,3891.3,0.9112805]
[1758888597227,1.44104475,3891.4,3891.3,1.2351805]
[1758888597526,0.11097062,3891.4,3891.3,1.2351805]
[1758888598428,0.34067062,3891.4,3891.3,1.2351805]
[1758888598629,0.91037062,3891.4,3891.3,1.2351805]
[1758888599321,0.34071863,3891.4,3891.3,1.2351805]
[1758888599633,0.68381863,3891.4,3891.3,1.2351805]
[1758888600024,0.91041863,3891.4,3891.3,1.2351805]
[1758888602939,0.91041863,3891.4,3891.3,0.6970805]
[1758888603135,1.44192796,3891.4,3891.3,0.6970805]
[1758888603340,1.44192796,3891.4,3891.3,1.2351805]
[1758888604837,1.44192796,3891.4,3891.3,1.1851805]
[1758888605227,1.44192796,3891.4,3891.3,0.2215]
[1758888605428,0.4446,3891.1,3891.0,0.46228]
[1758888605629,1.16161863,3891.1,3891.0,0.46228]
[1758888605829,1.69312796,3891.1,3891.0,0.46228]
[1758888606135,0.9214,3891.0,3890.9,0.46229]
[1758888606435,0.9214,3891.0,3890.3,1.1559]
[1758888606436,10.04767197,3891.0,3890.8,0.46229]
[1758888606629,1.43212796,3890.9,3890.8,0.69149]
[1758888606829,1.69312796,3890.9,3890.8,0.69149]
[1758888607228,1.43212796,3890.9,3890.8,0.46229]
[1758888607426,4.90092796,3890.9,3890.8,0.46229]
[1758888608140,5.36321796,3890.9,3890.8,0.46229]
[1758888608342,4.90092796,3890.9,3890.8,0.46229]
[1758888608732,5.36321796,3890.9,3890.8,0.46229]
[1758888609240,4.90092796,3890.9,3890.8,0.46229]
[1758888610136,5.36321796,3890.9,3890.8,0.46229]
[1758888610739,0.4532,3890.7,3890.6,0.46232]
[1758888611039,1.69982796,3890.7,3890.6,0.46232]
[1758888611436,1.69982796,3890.7,3889.9,0.39196419]
[1758888611437,0.1315,3890.0,3889.9,0.39196419]
[1758888611740,4.69602796,3890.0,3889.9,0.83406419]
[1758888611930,4.77812796,3890.0,3889.9,0.83406419]
[1758888612138,5.03912796,3890.0,3889.9,0.83406419]
[1758888613140,1.83132796,3890.0,3889.9,0.39196419]
[1758888613442,1.57032796,3890.0,3889.9,1.15146419]
[1758888613645,1.03881863,3890.0,3889.9,1.15146419]
[1758888613834,1.29981863,3890.0,3889.9,1.15146419]
[1758888615343,1.03881863,3890.0,3889.9,1.15146419]
[1758888615541,1.29981863,3890.0,3889.9,1.15146419]
[1758888616242,1.29981863,3890.0,3889.9,0.83406419]
[1758888616645,1.29981863,3890.0,3889.9,1.15146419]
[1758888617636,1.03881863,3890.0,3889.9,1.15146419]
[1758888618143,1.29981863,3890.0,3889.9,1.15146419]
[1758888618738,1.03881863,3890.0,3889.9,1.15146419]
[1758888618938,1.03881863,3890.0,3889.9,0.83406419]
[1758888619443,1.03893607,3890.0,3889.9,1.15146419]
[1758888619743,0.11113607,3890.0,3889.9,1.15146419]
[1758888619942,0.67883607,3890.0,3889.9,1.15146419]
[1758888620139,0.90743607,3890.0,3889.9,1.15146419]
[1758888620345,1.03893607,3890.0,3889.9,0.83406419]
[1758888620743,0.5677,3889.8,3889.7,3.67023]
[1758888620940,0.90743607,3889.8,3889.7,3.88203]
[1758888621136,0.4532,3889.6,3889.2,0.3174]
[1758888621346,0.3431,3889.7,3888.7,3.2078]
[1758888621347,0.3431,3889.4,3888.7,3.2078]
[1758888621536,0.7963,3888.8,3888.7,4.11245]
[1758888621734,0.90743607,3888.8,3888.7,4.42985]
[1758888622144,0.90743607,3888.8,3888.7,4.11245]
[1758888622338,0.90743607,3888.8,3888.7,4.42985]
[1758888622949,0.11113607,3888.8,3888.7,4.42985]
[1758888623250,0.11113607,3888.8,3888.7,9.42985]
[1758888623746,0.11113607,3888.8,3888.7,9.69085]
[1758888624145,6.07e-06,3888.8,3888.7,9.69085]
[1758888627040,0.0257,3888.9,3888.8,0.46254]
[1758888627246,0.0257,3888.9,3888.8,1.22204]
[1758888627742,0.5934,3888.9,3888.8,1.22204]
[1758888627945,0.5934,3888.9,3888.8,0.90464]
[1758888627946,0.822,3888.9,3888.8,0.90464]
[1758888628647,0.822,3888.9,3888.8,0.67434]
[1758888629145,0.822,3888.9,3888.8,0.46254]
[1758888629541,0.822,3888.9,3888.3,45.16429]
[1758888629542,0.7032,3888.5,3888.4,0.46259]
[1758888629742,0.9278,3888.5,3888.4,0.46259]
[1758888630344,0.9278,3888.0,3887.9,0.70017116]
[1758888631141,0.9278,3888.0,3887.9,0.93047116]
[1758888631341,0.7963,3888.0,3887.9,1.24787116]
[1758888631841,0.1315,3888.0,3887.9,0.02572116]
[1758888632145,0.1315,3888.0,3887.9,0.23752116]
[1758888632146,0.9278,3888.0,3887.9,0.23752116]
[1758888632345,0.9278,3888.0,3887.9,0.02572116]
[1758888633143,0.9278,3888.0,3887.9,0.23752116]
[1758888633347,0.9278,3888.0,3887.9,0.70016116]
[1758888633852,0.9278,3888.0,3886.8,0.3174]
[1758888633853,0.0442,3887.5,3886.8,0.3174]
[1758888634148,0.7963,3887.1,3886.6,3.5252]
[1758888634349,0.7963,3887.1,3886.3,0.26]
[1758888634350,0.2246,3886.4,3886.3,0.93463]
[1758888634541,0.4532,3886.4,3886.3,0.93463]
[1758888634746,0.7963,3886.4,3886.3,0.93463]
[1758888635049,0.4532,3886.4,3886.3,1.22233]
[1758888635253,0.4532,3886.4,3886.3,0.7595]
[1758888635455,1.25912,3886.4,3886.1,0.46286]
[1758888635747,0.3431,3885.8,3885.1,0.262]
[1758888635943,0.3431,3885.8,3885.0,0.1325]
[1758888635944,0.7963,3885.3,3885.0,0.1325]
[1758888636250,0.68070373,3885.2,3885.1,0.46298]
[1758888636549,0.7963,3885.1,3884.8,3.2078]
[1758888636749,0.7963,3884.9,3884.8,3.737]
[1758888636950,0.90530373,3884.9,3884.5,0.46304]
[1758888637149,0.262,3885.0,3884.5,0.46304]
[1758888637150,0.7963,3884.6,3884.5,0.46304]
[1758888637350,0.33360373,3884.6,3884.5,1.35504]
[1758888637650,0.46292,3885.6,3884.5,1.35504]
[1758888637651,5.6271624,3885.8,3885.1,0.3174]
[1758888637850,5.6271624,3885.8,3885.0,0.1325]
[1758888637851,0.3431,3885.7,3885.6,0.46291]
[1758888638044,5.2840624,3885.8,3885.6,0.46291]
[1758888638045,3.2078,3885.8,3885.6,0.46291]
[1758888638245,3.2078,3885.8,3885.7,0.3336]
[1758888640053,3.5577,3885.8,3885.7,0.3336]
[1758888640749,0.0257,3885.9,3885.8,0.46289]
[1758888640953,0.0257,3885.9,3885.8,0.79649]
[1758888641155,9.20434401,3885.9,3885.7,0.4629]
[1758888641458,0.3499,3885.8,3885.7,0.4629]
[1758888642253,8.85444401,3885.9,3885.7,0.4629]
[1758888642555,9.20434401,3885.9,3885.8,0.3336]
[1758888642855,0.3499,3885.8,3885.7,0.4629]
[1758888643957,0.6119,3885.8,3885.7,0.4629]
[1758888644261,0.262,3885.8,3885.7,0.7965]
[1758888644648,0.4932,3885.8,3885.7,0.7965]
[1758888644951,0.4932,3885.8,3885.7,1.248]
[1758888645356,0.2877,3885.9,3885.8,0.7851]
[1758888645554,1.0904,3885.9,3885.8,0.5667]
[1758888645750,0.4785,3885.9,3885.8,0.5667]
[1758888645958,0.0257,3885.9,3885.8,0.7851]
[1758888646145,0.0257,3885.9,3885.8,0.7351]
[1758888646349,3.2078,3886.4,3886.3,0.91433]
[1758888648054,3.439,3886.9,3886.8,0.91427]
[1758888648250,3.439,3886.9,3886.8,1.24787]
[1758888648251,3.6606,3886.9,3886.8,1.24787]
[1758888648558,4.0105,3886.9,3886.8,1.24787]
[1758888649061,3.6606,3886.9,3886.8,1.24787]
[1758888649271,4.0105,3886.9,3886.8,1.02947]
[1758888649560,0.3499,3886.7,3885.9,1.1572]
[1758888649767,0.2312,3886.2,3886.1,0.5667]
[1758888649957,0.33926842,3886.2,3886.1,41.3667]
[1758888650556,0.33926842,3886.2,3886.1,0.7851]
[1758888650757,0.56086842,3886.2,3886.1,1.01486]
[1758888650966,0.91076842,3886.2,3886.1,0.69596]
[1758888651266,0.33926842,3886.2,3886.1,1.24796]
[1758888651564,0.10806842,3886.2,3886.1,1.24796]
[1758888651863,0.33926842,3886.2,3886.1,1.24796]
[1758888652265,0.91076842,3886.2,3886.1,1.24796]
[1758888652966,0.56086842,3886.2,3886.1,1.24796]
[1758888653463,0.3430107,3886.2,3886.1,1.24796]
[1758888653763,0.5646107,3886.2,3886.1,1.24796]
[1758888653960,0.1118107,3886.2,3886.1,1.24796]
[1758888655556,0.1118107,3886.2,3886.1,1.51096]
[1758888657058,3.2078,3886.9,3886.8,1.24787]
[1758888657672,3.2078,3886.9,3886.8,42.04787]
[1758888658274,3.2078,3886.9,3886.8,42.31087]
[1758888660178,8.04461369,3887.3,3887.2,0.69583]
[1758888660479,8.92745073,3887.3,3887.2,1.02943]
[1758888661672,8.92745073,3887.3,3886.6,0.3336]
[1758888661673,0.4528,3887.0,3886.6,0.3336]
[1758888661877,0.8027,3886.3,3886.2,4.05335]
[1758888662083,4.1076,3887.0,3886.9,0.69586]
[1758888662281,4.64076609,3887.0,3886.9,0.69586]
[1758888662587,4.90376609,3887.0,3886.9,0.46276]
[1758888662795,4.90376609,3887.0,3886.2,5.4532]
[1758888662796,0.8027,3886.8,3886.7,0.46278]
[1758888662978,9.19067978,3886.8,3886.7,0.46278]
[1758888663476,0.2216,3885.9,3885.8,3.4409]
[1758888663682,8.92766826,3885.9,3885.8,3.2078]
[1758888663877,8.92766826,3885.9,3885.8,3.67069]
[1758888664072,8.92766826,3885.9,3885.8,0.91439]
[1758888664073,1.33585457,3885.9,3885.8,0.91439]
[1758888664274,0.1306,3886.5,3885.8,0.3336]
[1758888664275,0.8027,3886.2,3885.8,0.3336]
[1758888664476,0.8027,3886.2,3886.1,0.46286]
[1758888664681,1.33582473,3886.2,3886.1,0.46286]
[1758888664878,1.33582473,3886.2,3886.1,0.69596]
[1758888665081,1.33582473,3886.2,3886.1,1.24796]
[1758888665082,1.11422473,3886.2,3886.1,1.24796]
[1758888665873,0.53312473,3886.2,3886.1,1.24796]
[1758888666789,0.8119,3886.6,3886.5,1.23611]
[1758888666987,1.34518421,3886.6,3886.5,1.23611]
[1758888667187,1.34518421,3886.6,3886.5,0.91541]
[1758888667684,1.34518421,3886.6,3886.2,1.47781]
[1758888667685,0.1402,3886.5,3886.4,0.46281]
[1758888667893,11.9284979,3886.5,3885.9,1.15721]
[1758888668092,0.7801,3886.0,3885.9,0.2285]
[1758888668289,1.44538421,3886.0,3885.9,0.69138]
[1758888668888,0.4467,3885.6,3885.2,1.1574]
[1758888669083,0.4467,3885.6,3885.2,0.2217]
[1758888669084,0.2207,3885.3,3885.2,0.2217]
[1758888669395,0.8661151,3885.3,3885.2,0.68467]
[1758888669589,1.4168151,3885.3,3885.2,0.68467]
[1758888670085,1.41682896,3885.3,3885.2,0.68467]
[1758888670288,0.64542896,3885.3,3885.2,1.21937]
[1758888670488,0.11179512,3885.3,3885.2,1.21937]
[1758888671285,0.88319512,3885.3,3885.2,0.89577]
[1758888673494,0.8831921,3885.3,3885.2,0.89577]
[1758888674399,0.6571921,3885.3,3885.2,0.89577]
[1758888674588,0.1117921,3885.3,3885.2,1.21937]
[1758888675389,2.1e-06,3885.3,3885.2,1.21937]
[1758888675995,3.2078,3886.0,3885.9,1.21928]
[1758888676289,3.5325,3886.4,3886.3,0.46283]
[1758888676497,3.5325,3886.4,3886.3,1.21923]
[1758888676498,4.06646069,3886.4,3886.3,1.21923]
[1758888676691,4.51316069,3886.4,3886.3,0.46283]
[1758888677595,0.7714,3886.3,3886.2,0.46284]
[1758888677797,0.5454,3885.7,3885.6,41.26292]
[1758888677999,0.59487,3886.0,3885.1,3.2078]
[1758888678000,0.7714,3885.6,3885.1,3.2078]
[1758888678202,0.7714,3885.2,3885.1,4.15548]
[1758888678393,0.7714,3885.2,3885.1,44.95548]
[1758888678599,0.7714,3885.2,3885.1,41.74768]
[1758888678795,0.7714,3885.2,3885.1,0.94768]
[1758888679305,1.30531375,3885.2,3885.1,0.72598]
[1758888679491,4.51311375,3885.2,3885.1,0.263]
[1758888679696,4.97607375,3885.2,3885.1,0.46298]
[1758888680008,0.9034,3884.5,3884.4,0.46306]
[1758888680497,0.9034,3884.5,3884.4,0.68476]
[1758888680706,0.5454,3884.5,3884.4,0.89586]
[1758888680897,0.5454,3884.5,3884.4,1.21946]
[1758888681093,0.5454,3884.8,3884.7,1.21943]
[1758888682701,0.132,3885.0,3884.9,0.463]
[1758888682898,0.3247,3885.0,3884.9,1.2194]
[1758888683089,0.5454,3885.0,3884.9,1.2194]
[1758888683799,0.3247,3885.0,3884.9,1.2194]
[1758888684006,3.5325,3885.2,3885.1,1.21938]
[1758888684300,3.7532,3885.2,3885.1,1.21938]
[1758888684499,3.9792,3885.2,3885.1,0.4328]
[1758888684806,0.7714,3884.8,3884.7,0.46302]
[1758888684997,0.9034,3884.5,3884.4,0.46306]
[1758888685198,0.9034,3884.5,3884.4,0.68476]
[1758888686693,0.9034,3884.5,3884.3,0.264]
[1758888686901,1.36646,3884.5,3884.3,0.264]
[1758888687099,0.5787,3884.5,3884.3,0.72707]
[1758888687401,0.7714,3884.4,3884.3,0.72707]
[1758888688003,0.87881878,3884.4,3884.3,0.94877]
[1758888689596,0.87881878,3884.4,3883.6,3.2078]
[1758888689597,8.47063247,3884.4,3883.6,3.2078]
[1758888689804,0.7714,3883.8,3883.7,0.89594]
[1758888690006,0.7714,3883.8,3883.7,1.15894]
[1758888690199,0.7714,3883.8,3883.7,1.48254]
[1758888690900,0.7714,3883.8,3883.6,0.46316]
[1758888690901,0.7714,3883.7,3883.6,0.46316]
[1758888691119,0.7714,3883.7,3882.9,1.0194]
[1758888691120,0.2207,3883.0,3882.9,1.0194]
[1758888691299,0.78475443,3883.0,3882.9,0.89604]
[1758888691498,1.01075443,3883.0,3882.9,0.68494]
[1758888691709,0.87875443,3883.0,3882.9,1.21964]
[1758888693105,1.01075443,3883.0,3882.9,0.89604]
[1758888693301,1.01075443,3883.0,3882.8,0.2217]
[1758888693302,0.23935443,3883.0,3882.8,0.2217]
[1758888693504,0.2207,3882.4,3882.3,0.94901]
[1758888693811,0.87875443,3882.4,3882.3,0.94901]
[1758888694101,0.7714,3882.4,3882.3,41.74741]
[1758888694295,0.7714,3882.4,3882.3,42.07101]
[1758888694696,3.2078,3882.8,3882.7,0.46326]
[1758888694697,3.4285,3882.8,3882.7,0.46326]
[1758888694903,3.4285,3882.8,3882.7,1.21966]
[1758888694904,0.6525241,3882.8,3882.7,1.21966]
[1758888695104,0.1071241,3882.8,3882.7,1.21966]
[1758888695299,0.3247,3883.2,3883.1,0.89602]
[1758888695509,3.2078,3883.3,3883.2,0.7564]
[1758888696706,3.2078,3883.7,3883.6,1.21956]
[1758888697905,3.2078,3884.1,3884.0,0.46311]
[1758888698104,0.3247,3884.2,3884.1,0.7564]
[1758888698306,3.781,3885.0,3884.9,0.463]
[1758888698515,4.046,3885.0,3884.9,0.463]
[1758888698811,4.1217,3885.0,3884.9,0.463]
[1758888699106,0.9139,3885.0,3884.9,0.6922]
[1758888699610,4.1217,3885.0,3884.9,0.463]
[1758888701410,4.1217,3885.0,3884.9,0.6922]
[1758888701711,3.436,3885.0,3884.9,1.2554]
[1758888701911,3.7767,3885.0,3884.9,0.9173]
[1758888702815,3.7767,3885.0,3884.9,1.2554]
[1758888703318,0.5689,3885.0,3884.9,1.2554]
[1758888703813,0.3407,3885.0,3884.9,1.2554]
[1758888704315,4.2804,3885.4,3885.3,0.46295]
[1758888704700,4.2547,3885.4,3885.3,0.46295]
[1758888705313,0.7819,3885.3,3885.2,0.46296]
[1758888705514,0.7819,3884.6,3884.5,40.8]
[1758888705715,0.7819,3884.6,3884.5,41.52805]
[1758888705905,0.133,3885.0,3884.9,0.9173]
[1758888705906,0.3612,3885.0,3884.9,0.9173]
[1758888706617,0.9149,3885.0,3884.9,0.9173]
[1758888707415,1.02157385,3885.0,3884.9,0.9173]
[1758888708516,1.02157385,3885.0,3884.9,1.2554]
[1758888709221,0.10667385,3885.0,3884.9,1.2554]
[1758888709418,0.67557385,3885.0,3884.9,1.2554]
[1758888711418,1.02157385,3885.0,3884.9,0.9173]
[1758888711823,1.02157385,3885.0,3884.9,0.463]